Cogmind - Beta 14 @@@ ROGUE MODE // 2025.04.24 @ 01:33:42 Player: jumpy Result: Destroyed by D-53 Grenadier with Mini Grenade Launcher Performance ------------- Evolutions (0) 0 Regions Visited (2) 400 Robots Destroyed (10) 50 Value Destroyed (111) 111 Prototype IDs (2) 40 Alien Tech Used (0) 0 Bonus (42) 42 TOTAL SCORE: 643 Bonus ------- Follower Combat Kills 42 Cogmind --------- Core Integrity 0/250 Matter 211/300 Energy 99/100 System Corruption 3% Temperature Cool (0) Movement Walking (140) Location -10/Mines Parts ------- > --- POWER (1) -------- (None) > --- PROPULSION (2) --- Makeshift Leg > --- UTILITY (2) ------ Seismic Detector > --- WEAPON (2) ------- Assault Rifle > --- INVENTORY (5) ---- Wheel Wheel Seismic Detector Light Cannon Mining Laser Peak State ------------ > --- POWER ------------ Makeshift Power Source > --- PROPULSION ------- Makeshift Leg > --- UTILITY ---------- Small Storage Unit Seismic Detector > --- WEAPON ----------- Assault Rifle > --- INVENTORY -------- Wheel Wheel Seismic Detector Light Cannon Mining Laser [Rating: 11] Favorites ----------- Power Ion Engine Engine Ion Engine Propulsion Aluminum Leg Leg Aluminum Leg Utility Small Storage Unit Device Seismic Detector Storage Small Storage Unit Weapon Medium Laser Energy Gun Medium Laser Ballistic Gun Assault Rifle Ballistic Cannon Light Cannon Build | -11 -10 -10 ------- Run | Yrd Mat Min Slots Evolved . | . . . Power . | . . . Propulsion . | . . . Utility . | . . . Weapon . | . . . Parts Attached 14 | 7 1 6 Power 3 | 1 . 2 Engine 3 | 1 . 2 Core . | . . . Reactor . | . . . Propulsion 4 | 2 . 2 Treads . | . . . Leg 4 | 2 . 2 Wheel . | . . . Hover . | . . . Flight . | . . . Utility 2 | 2 . . Device 1 | 1 . . Storage 1 | 1 . . Processor . | . . . Hackware . | . . . Protection . | . . . Artifact . | . . . Weapon 5 | 2 1 2 Energy Gun 1 | 1 . . Energy Cannon . | . . . Ballistic Gun 2 | 1 . 1 Ballistic Cannon 2 | . 1 1 Launcher . | . . . Special Weapon . | . . . Impact Weapon . | . . . Slashing Weapon . | . . . Piercing Weapon . | . . . Special Melee Weapon . | . . . Unidentified Prototypes . | . . . Parts Lost 9 | . . 9 Power 3 | . . 3 Propulsion 2 | . . 2 Utility 1 | . . 1 Weapon 3 | . . 3 Highest Loss Streak 7 | . . 7 To Critical Strikes . | . . . Average Slot Usage (%) 89 | . 100 85 Engine 12 | . 14 12 Leg 22 | . 28 21 Device 14 | . 14 14 Storage 13 | . 14 13 Energy Gun 9 | . 14 8 Ballistic Gun 4 | . 2 4 Ballistic Cannon 10 | . 12 9 Peak Build Rating 11 | 7 7 11 Average Rating 7 | 5 7 7 On Entrance 4 | . 7 7 Naked Turns . | . . . Heaviest Build 16 | 15 16 16 Greatest Support 20 | 20 20 20 Greatest Overweight (x) 2 | . . 2 Average Overweight (x) . | . . . Largest Inventory Capacity 8 | 8 8 8 Average Capacity 7 | 7 8 7 Most Carried 8 | 7 8 8 Average Carried 6 | 3 7 6 Final Capacity 8 | 8 8 5 Final Carried 8 | 6 8 5 Class Distribution -------------------- 100% | Mutant Dominant Class ---------------- Mutant | -10/Materials Mutant | -10/Mines Resources | -11 -10 -10 ----------- Run | Yrd Mat Min Matter Collected 403 | 259 . 144 Remotely . | . . . Salvage Created 249 | 126 . 123 Parts 25 | 12 . 13 Haulers Intercepted . | . . . Recyclers Shooed . | . . . Parts Field Recycled . | . . . Retrieved Matter . | . . . Parts Self-Destructed . | . . . Prevented . | . . . Kills | -11 -10 -10 ------- Run | Yrd Mat Min Combat Hostiles Destroyed 10 | . . 10 Guns 3 | . . 3 Cannons 7 | . . 7 Classes Destroyed 5 | 2 . 3 Tunneler 3 | 3 . . Recycler 1 | 1 . . Swarmer 5 | . . 5 Grunt 1 | . . 1 Assembled 4 | . . 4 Best Kill Streak 4 | 3 . 4 Combat Bots Only 4 | . . 4 Max Kills in Single Turn 1 | 1 . 1 Gunslinging . | . . . Exploded . | . . . Melee . | . . . Uniques/NPCs Destroyed . | . . . Combat | -11 -10 -10 -------- Run | Yrd Mat Min Hostile Shots Fired 100 | . . 100 Missed 28 | . . 28 Damage Taken 1220 | . . 1220 Core 271 | . . 271 Absorbed by Shields . | . . . Core Remaining (%) 100 | 100 . . Volleys Fired 41 | 11 . 30 Largest 2 | 2 . 2 Hottest 85 | 70 . 85 Shots Fired 76 | 22 . 54 Gun 42 | 22 . 20 Cannon 34 | . . 34 Launcher . | . . . Special . | . . . Kinetic 49 | 11 . 38 Thermal 27 | 11 . 16 Explosive . | . . . Electromagnetic . | . . . Robot Hit Streak 4 | 3 . 4 Robot Miss Streak 4 | 3 . 4 Penetration Max . | . . . Secondary Targets . | . . . Shots Hit Robots 35 | 12 . 23 Core Hits 17 | 5 . 12 Critical Kills . | . . . Critical Parts Destroyed . | . . . Critical Strikes 4 | 2 . 2 Burn 3 | 2 . 1 Blast 1 | . . 1 Melee Attacks . | . . . Impact . | . . . Slashing . | . . . Piercing . | . . . Sneak Attacks . | . . . Combat Hostiles . | . . . Follow-up Attacks . | . . . Damage Inflicted 580 | 147 . 433 Guns 247 | 147 . 100 Cannons 333 | . . 333 Explosions . | . . . Melee . | . . . Ramming . | . . . Kinetic 406 | 60 . 346 Thermal 174 | 87 . 87 Explosive . | . . . Electromagnetic . | . . . Impact . | . . . Slashing . | . . . Piercing . | . . . Highest Corruption 3 | . . 3 Average Corruption 3 | . . 3 Corruption Purged . | . . . Corruption Blocked . | . . . Effects 2 | . . 2 Matter Fused 2 | . . 2 Overload Shots . | . . . Overflow Damage 15 | . . 15 Projectiles 15 | . . 15 Explosions . | . . . Melee . | . . . Knockbacks 3 | . . 3 Impact . | . . . Kinetic 3 | . . 3 Secondary . | . . . Self-Inflicted Damage . | . . . Shots . | . . . Rammed . | . . . Targets Rammed . | . . . Kicked . | . . . Crushed . | . . . Highest Temperature 172 | 27 . 172 Average Temperature 65 | 10 . 84 Received Heat Transfer 243 | . . 243 Siege Activations . | . . . Robots Corrupted . | . . . Combat Hostiles . | . . . Parts Fried . | . . . Impact Corruptions . | . . . Robots Melted . | . . . Combat Hostiles . | . . . Parts Melted . | . . . Heat Transferred 740 | 407 . 333 Parts Sabotaged . | . . . Parts Stolen . | . . . Parts Stripped . | . . . Power Chain Reactions . | . . . Alert | -11 -10 -10 ------- Run | Yrd Mat Min Peak Influence 210 | 20 17 210 Initial 13 | . 13 6 Average 76 | 8 13 128 Maximum Alert Level 1 | . . 1 Low Security (%) 93 | 100 100 88 Level 1 6 | . . 11 Level 2 . | . . . Level 3 . | . . . Level 4 . | . . . Level 5 . | . . . High Security . | . . . Max Security . | . . . Squads Dispatched . | . . . Investigation . | . . . Extermination . | . . . Reinforcement . | . . . Assault . | . . . Garrison . | . . . Intercept . | . . . Searches Triggered . | . . . Construction Impeded . | . . . Haulers Reinforced . | . . . Active Scanning Responses . | . . . Cargo Convoy Interrupts . | . . . Stealth | -11 -10 -10 --------- Run | Yrd Mat Min Distress Signals . | . . . Communications Jammed . | . . . Distress Signals . | . . . Times Spotted 23 | . 1 22 Peak Tracking Total 10 | . 1 10 Tactical Retreats 1 | . . 1 Traps | -11 -10 -10 ------- Run | Yrd Mat Min Traps Triggered . | . . . Indirectly . | . . . Trap Hack Attempts . | . . . Triggered . | . . . Disarmed . | . . . Reprogrammed . | . . . Reused . | . . . Traps Extracted . | . . . Installed . | . . . Triggered . | . . . Machines | -11 -10 -10 ---------- Run | Yrd Mat Min Machines Disabled . | . . . Max in Single Turn . | . . . Machines Repaired . | . . . Machines Dismantled . | . . . Machines Sabotaged . | . . . Overloaded Fab Kills . | . . . Hacking | -11 -10 -10 --------- Run | Yrd Mat Min Machines Accessed 3 | . 3 . Terminals 3 | . 3 . Fabricators . | . . . Repair Stations . | . . . Recycling Units . | . . . Scanalyzers . | . . . Garrison Access . | . . . Total Hacks 10 | . 10 . Successful 6 | . 6 . Failed 4 | . 4 . Catastrophic 1 | . 1 . Database Lockouts . | . . . Manual 4 | . 4 . Terminals 10 | . 10 . Fabricators . | . . . Repair Stations . | . . . Recycling Units . | . . . Scanalyzers . | . . . Garrison Access . | . . . Terminal Hacks 6 | . 6 . Robot Schematic 1 | . 1 . Prototype ID Bank 1 | . 1 . Locate Traps 1 | . 1 . Dispatch Records 1 | . 1 . Maintenance Status 1 | . 1 . Hauler Manifests 1 | . 1 . Fabricator Hacks . | . . . Repair Station Hacks . | . . . Recycling Unit Hacks . | . . . Scanalyzer . | . . . Garrison Access Hacks . | . . . Unauthorized Hacks . | . . . Terminals . | . . . Fabricators . | . . . Repair Stations . | . . . Recycling Units . | . . . Scanalyzers . | . . . Garrison Access . | . . . Data Cores Recovered . | . . . Used . | . . . Hacking Detections 3 | . 3 . Full Trace Events 1 | . 1 . Feedback Events . | . . . Feedback Blocked . | . . . Robot Schematics Acquired 1 | . 1 . Robots Built . | . . . Authchips . | . . . Time . | . . . Total Robot Build Rating . | . . . Part Schematics Acquired . | . . . Parts Built . | . . . Authchips . | . . . Time . | . . . Total Part Build Rating . | . . . Parts Repaired . | . . . Time . | . . . Parts Recycled . | . . . Recycled Matter . | . . . Retrieved Matter . | . . . Retrieved Components . | . . . Parts Scanalyzed . | . . . Part Schematics Acquired . | . . . Parts Damaged . | . . . Bothacking | -11 -10 -10 ------------ Run | Yrd Mat Min Used RIF Installer . | . . . Robots Hacked . | . . . Non-combat . | . . . Combat . | . . . Robot Hacks Applied . | . . . Relay Couplers Released . | . . . Fabnet Peak Effective % . | . . . Robots Rewired . | . . . Allies Hacked . | . . . Hacks Repelled . | . . . Allies | -11 -10 -10 -------- Run | Yrd Mat Min Total Allies 5 | . . 5 Largest Group 4 | . . 4 Highest-Rated Group 71 | . . 71 Highest-Rated Ally 31 | . . 31 Total Orders . | . . . Ally Attacks 43 | . . 43 Total Damage 642 | . . 642 Kills 10 | . . 10 Allies Corrupted . | . . . Allies Melted . | . . . Intel | -11 -10 -10 ------- Run | Yrd Mat Min Robot Analysis Total . | . . . Derelict Logs Recovered . | . . . Drone Launches . | . . . Drone Recoveries . | . . . Exploration | -11 -10 -10 ------------- Run | Yrd Mat Min Turns Passed 709 | 169 145 395 Spaces Moved 449 | 102 117 230 Core 7 | 5 . 2 Treads . | . . . Legs 442 | 97 117 228 Wheels . | . . . Hover . | . . . Flight . | . . . Fastest Speed 50 | 50 120 120 Average Speed 123 | 116 120 127 Slowest Speed 150 | 120 120 150 Overloaded Moves . | . . . Propulsion Burnouts . | . . . Robots Hopped . | . . . Cave-ins Triggered . | . . . Exploration Rate (%) 28 | 6 26 53 Regions Visited 2 Branch Regions 1 Pre-discovered Areas . | . . . Known Exits Taken . | . . . Unknown Exits Taken 2 | 1 1 . Scrap Searched . | . . . Spaces Dug . | . . . Terrain Destroyed . | . . . Melee . | . . . Projectile . | . . . AOE . | . . . Terrain Rammed . | . . . Walls Destroyed . | . . . Machines Disabled . | . . . Actions | -11 -10 -10 --------- Run | Yrd Mat Min Total 527 | 127 121 279 Wait 12 | . . 12 Move 447 | 101 116 230 Hop . | . . . Pick Up 10 | 7 3 . Fast Attach 9 | 7 . 2 Attach 3 | . . 3 Detach . | . . . Swap 2 | . 1 1 Drop 3 | 1 1 1 Fire 41 | 11 . 30 Melee . | . . . Ram . | . . . Kick . | . . . Crush . | . . . Escape Stasis . | . . . Rewire . | . . . Trap . | . . . Miscellaneous . | . . . Route ------- -11/Scrapyard -10/Materials -10/Mines (discovered 2 exits: [*Mat x2]) History --------- Turn | Location | Event 3 | -11/Scrapyard | Discovered new exit (range 16) 170 | -11/Scrapyard | Entered Materials 294 | -10/Materials | Discovered new exit (range 15) 315 | -10/Materials | Entered Mines 318 | -10/Mines | Build established: Mutant 412 | -10/Mines | Discovered new exit (range 13) 490 | -10/Mines | Discovered new exit (range 7) 526 | -10/Mines | Assembled infested the area 568 | -10/Mines | Core integrity fell below 50% 608 | -10/Mines | Lost 7 parts (2p2n3w) 652 | -10/Mines | Assisted by bots powering up and referring to "LRC-V3" 703 | -10/Mines | Core integrity fell below 20% 710 | -10/Mines | Destroyed by D-53 Grenadier with Mini Grenade Launcher Last Messages --------------- 00652_ Trooper 1a: "Hello LRC-V3. What is your command?" 00652_ Mercenary 1a: "Hello LRC-V3. What is your command?" 00652_ Trooper 1b: "Hello LRC-V3. What is your command?" 00688_ U-05 Engineer builds a Wall. 00690_ The unstable cave ceiling collapses. 00692_ U-05 Engineer lays Concrete. 00694_ U-05 Engineer builds a Wall. 00696_ U-05 Engineer lays Concrete. 00699_ U-05 Engineer destroyed. 00700_ Mercenary 1a destroyed. 00701_ U-05 Engineer builds a Wall. 00702_ U-05 Engineer forms the Earth. 00702_ D-53 Grenadier destroyed. 00703_ U-05 Engineer builds a Wall. 00704_ U-05 Engineer destroyed. 00704_ Trooper 1b destroyed. 00706_ Sml. Storage Unit destroyed. 00708_ P8-QQF(g) destroyed. 00708_ Trooper 1a destroyed. 00708_ Mak. Power Source destroyed. Map ----- +----------------------------------------------------+ | ?????????????????????????????????????? | | ?????????????????????????????????????? | | ?????????????????????????????????????? | | ?????????????????????????????????????? | | ?????????????????????????????????????? | | ?????????????????????????????????????? | | ?????????????????????????????????????? | | ?????????????????????????????????????? | | ?????????????????????????????????????? | | ???????? ????????????????????????????? | | ??????? ??##????????????????????????# | | ??????? ## ????????????????????????# | | ?????? ????????????????????????? | | ????? % ???????????????????????### | | ?????? ???????????????????????# | | ??????# ???????????????????????# | | ??????# ?##????????????????????? < | | ??????# ## ##???????????????????? | | ?????## # # ??????????????????????% | | ????## d ??????????????????????# | | ????# #??????????????????????# | | ????# ##?????????????????????# | | ????# % #?????????????????????# | | ????# = ##????????????????????# | | ????# #????????????????????# | | ????# @ #????????????????????# | | ??#### ######???????????????# | | ??# #???????????????# | | ??# # ##### #???????????????# | | ?## #########???# ##??????????????# | | ?# ##????????#### ##????????????## | | ?# ##########" #????# ###### | | ?## #????# | | ??# ##?###??####### | | ??# ######### #?# ##???????# | | ?## ##??????## ##? #??????## | | ?# #???????#### #### #????### | | ?# ##?????????# ### #???### | | ?## #????????## #??#### | | ??## #???????# % %##### | | ???## #???????# % [% | | ????## ##???????## %% %% # | | ?????####?????????# ###### #### | | ??????????????????## ##????#######??? | | ???????????????????####??????????????? | | ?????????????????????????????????????? | | ?????????????????????????????????????? | | | | | | | +----------------------------------------------------+ Best States ------------- Heat Dissipation 25 Energy Generation 15 Energy Capacity 250 Matter Stores 285 Matter Capacity 300 Sight Range 16 Terrain Scan Density 10 Evasion (%) 55 Item Schematics ----------------- None Robot Schematics ------------------ G-34 Mercenary | -10/Materials | Hacked Fabricated ------------ Nothing Alien Tech Used ----------------- None Achievements -------------- None Challenges ------------ None Game ------ Seed GrapheneDeepWeb Manual? 0 Play Time 00:09:14 Cumulative 46.5 hours Start 2025.04.24 @ 01:27:38 End 2025.04.24 @ 01:33:42 Sessions 1 Manual Loads 0 Difficulty Rogue Special Mode None Game No. 144 Rogue 144 Adventurer 0 Explorer 0 Win Type - Total 0 Types 0/0/0/0/0/0/0/0/0 Lore% 14 Gallery% 37 Achievement% 30 Wizard Run 0 Options --------- Layout 0 ASCII 0 Keyboard 0 Movement Numpad Keybinds 0 Fullscreen 2 Font 18/Terminus Map View 76x50 Zoom Use 0% Tactical HUD 1 Map Filters NONE Filters NONE Steam 1 RUN: 531173cc-df28-4ee3-aeb3-5793283caa56